fUST/lending_fUST_20251015
["ID","MTS","AMOUNT","RATE_DAILY","PERIOD"]
[391299086,1760478632343,-191.17515885,0.000249,2]
[391299088,1760478632352,-200.0,0.00024971,2]
[391299089,1760478632362,-966.45,0.00025028,7]
[391299092,1760478632371,-338.98,0.00025077,2]
[391299094,1760478632381,-177.90835515,0.000251,2]
[391299095,1760478632391,-235.49771997,0.000251,2]
[391299097,1760478632400,-190.72991665,0.000251,2]
[391299099,1760478632409,-1827.70909118,0.000251,2]
[391299101,1760478632419,-1616.40857039,0.000251,2]
[391299103,1760478632428,-191.17515885,0.000251,2]
[391299105,1760478632437,-177.90835515,0.000253,2]
[391299107,1760478632447,-986.52935611,0.00025341,7]
[391299109,1760478632456,-500.0,0.00025399,7]
[391299111,1760478632466,-235.49771997,0.000254,2]
[391299113,1760478632475,-190.72991665,0.000254,2]
[391299115,1760478632485,-1827.70909118,0.000254,2]
[391299117,1760478632494,-1616.40857039,0.000254,2]
[391299119,1760478632504,-191.17515885,0.000254,2]
[391299121,1760478632513,-160.0,0.00025586,2]
[391299123,1760478632522,-235.49771997,0.000256,2]
[391299125,1760478632531,-190.72991665,0.000256,2]
[391299127,1760478632540,-1827.70909118,0.000256,2]
[391299129,1760478632550,-1616.40857039,0.000256,2]
[391299131,1760478632559,-191.17515885,0.000256,2]
[391299133,1760478632568,-500.0,0.0002575,2]
[391299135,1760478632577,-235.49771997,0.000259,2]
[391299137,1760478632586,-1827.70909118,0.000259,2]
[391299139,1760478632595,-1616.40857039,0.000259,2]
[391299141,1760478632604,-387.41,0.0002602,2]
[391299143,1760478632613,-260.0,0.00026134,2]
[391299145,1760478632622,-1000.0,0.00026298,2]
[391299147,1760478632631,-380.0,0.00026722,2]
[391299149,1760478632640,-336.0,0.00026832,2]
[391299151,1760478632651,-300.0,0.00026832,2]
[391299153,1760478632661,-300.0,0.00026832,2]
[391299155,1760478632670,-435.83,0.00026949,2]
[391299157,1760478632679,-300.0,0.00027105,30]
[391299160,1760478632689,-300.0,0.00027105,30]
[391299162,1760478632699,-300.0,0.00027105,30]
[391299163,1760478632711,-300.0,0.00027105,30]
[391299165,1760478632726,-300.0,0.00027105,30]
[391299167,1760478632736,-300.0,0.00027105,30]
[391299169,1760478632745,-300.0,0.00027105,30]
[391299172,1760478632755,-300.0,0.00027105,30]
[391299174,1760478632764,-300.0,0.00027105,30]
[391299176,1760478632773,-300.0,0.00027105,30]
[391299177,1760478632783,-300.0,0.00027105,30]
[391299180,1760478632792,-300.0,0.00027105,30]
[391299182,1760478632801,-300.0,0.00027105,30]
[391299184,1760478632810,-300.0,0.00027105,30]
[391299186,1760478632819,-300.0,0.00027105,30]
[391299188,1760478632828,-600.0,0.00027536,30]
[391299190,1760478632837,-484.26,0.00027878,2]
[391299192,1760478632846,-1097.0,0.00027926,2]
[391299194,1760478632855,-1096.0,0.00028075,7]
[391299196,1760478632865,-1096.0,0.00028227,2]
[391299198,1760478632874,-12500.0,0.00028305,7]
[391299200,1760478632882,-151.0,0.00028309,2]
[391299202,1760478632891,-151.0,0.00028309,2]
[391299204,1760478632900,-151.0,0.00028309,2]
[391299206,1760478632909,-330.54241822,0.00028309,2]
[391299207,1760478632918,-10572.96241187,0.00028309,2]
[391299209,1760478632927,-1096.0,0.000284,2]
[391299211,1760478632936,-1096.0,0.0002867,2]
[391299214,1760478632946,-268.60855356,0.0002867,2]
[391299216,1760478632955,-158.60714566,0.00028767,15]
[391299218,1760478632964,-700.0,0.00028804,7]
[391299220,1760478632973,-1096.0,0.00028864,7]
[391299222,1760478632983,-406.0,0.00028936,2]
[391299224,1760478632992,-1000.01,0.00029,2]
[391299226,1760478633001,-1096.0,0.00029011,7]
[391299228,1760478633011,-406.0,0.0002904,2]
[391299230,1760478633020,-744.0,0.00029128,2]
[391299231,1760478633029,-1000.01,0.00029174,2]
[391299234,1760478633039,-600.0,0.00029201,2]
[391299236,1760478633048,-596.15905821,0.00029233,29]
[391299238,1760478633059,-298.67203218,0.00029375,5]
[391299240,1760478633068,-500.0,0.00029375,5]
[391299242,1760478633077,-500.0,0.00029375,5]
[391299243,1760478633086,-500.0,0.00029375,5]
[391299246,1760478633095,-500.0,0.00029375,5]
[391299247,1760478633104,-156.2830294,0.00029375,5]
[391299249,1760478633113,-981.0,0.00029397,2]
[391299251,1760478633123,-631.0,0.00029397,2]
[391299253,1760478633132,-2161.0,0.00029397,2]
[391299255,1760478633142,-744.0,0.00029424,7]
[391299257,1760478633151,-1393.86022204,0.00029429,2]
[391299258,1760478633162,-600.0,0.00029505,2]
[391299259,1760478633171,-700.0,0.00029626,7]
[391299260,1760478633180,-500.0,0.00029629,2]
[391299261,1760478633309,-533.52617994,0.00029705,2]
[391299262,1760478633318,-2131.97061502,0.00029705,2]
[391299263,1760478633328,-204.0,0.0002971,24]
[391299264,1760478633337,-852.36844416,0.0002981,2]
[391299265,1760478633346,-392.1734423,0.00029863,30]
[391299266,1760478633355,-392.1734423,0.00029863,30]
[391299267,1760478633365,-392.1734423,0.00029863,30]
[391299268,1760478633374,-236.17,0.00029884,10]
[391299269,1760478633384,-196.81,0.00029884,10]
[391299270,1760478633393,-4199.0,0.00029894,2]
[391299271,1760478633402,-162.8757457,0.00029952,30]
[391299272,1760478633411,-297.8851395,0.00029952,30]
[391299273,1760478633421,-162.48473265,0.00029973,5]
[391299274,1760478633430,-500.0,0.00029973,5]
[391299275,1760478633441,-406.0,0.0002998,7]
[391299276,1760478633451,-4999.0,0.00029988,2]
[391299277,1760478633461,-6354.90326598,0.00029989,2]
[391299278,1760478633478,-164.01,0.00029884,10]
[391299279,1760478633487,-4497.5762867,0.00029989,2]
[391299280,1760478633498,-1726.5,0.00029989,2]
[391299281,1760478633509,-1159.32619142,0.00029989,2]
[391299282,1760478633521,-375.91943351,0.00029989,2]
[391299336,1760478637998,-905.68,0.00029989,2]
[391299338,1760478638009,-619.35726683,0.00029989,2]
[391299550,1760478640208,-5379.06594425,0.00029989,2]
[391299756,1760478643101,-15534.75538671,0.00029989,2]
[391299758,1760478643110,-1856.69,0.0002999,3]
[391299760,1760478643119,-928.35,0.0002999,3]
[391299762,1760478643127,-464.17,0.0002999,3]
[391299764,1760478643136,-232.09,0.0002999,3]
[391299766,1760478643145,-696.29,0.0002999,3]
[391299768,1760478643154,-10806.63312952,0.0003,7]
[391299770,1760478643163,-2453.85616073,0.0003,7]
[391299772,1760478643172,-800.0,0.00030129,2]
[391299774,1760478643182,-744.0,0.00030131,2]
[391299776,1760478643191,-157.430326,0.00030178,5]
[391299777,1760478643200,-155.397029,0.00030178,5]
[391299778,1760478643208,-800.0,0.00030192,2]
[391299779,1760478643217,-285.78042024,0.00030219,2]
[391299781,1760478643227,-212.93251027,0.00030219,2]
[391299783,1760478643235,-19634.7888297,0.0003022,2]
[391300251,1760478691626,-820.06,0.0003022,10]
[391300252,1760478691636,-16918.2949457,0.0003022,2]
[391300253,1760478691645,-41656.19999999,0.0003023,2]
[391300254,1760478691655,-12264.98216112,0.00030236,2]
[391300255,1760478691664,-419.21673545,0.00030273,5]
[391300256,1760478691673,-500.0,0.00030273,5]
[391300257,1760478691682,-500.0,0.00030279,11]
[391300258,1760478691692,-500.0,0.00030279,11]
[391300259,1760478691702,-720.0,0.0003029,30]
[391300260,1760478691711,-500.0,0.0003029,10]
[391300261,1760478691721,-36553.0837754,0.0003029,2]
[391300262,1760478691735,-151.0,0.000303,14]
[391300263,1760478691744,-151.0,0.000303,10]
[391300264,1760478691753,-14090.39,0.000303,7]
[391300265,1760478691762,-1192.3955975,0.00030336,2]
[391300266,1760478691773,-501.9026345,0.00030336,2]
[391300267,1760478691782,-1193.342098,0.00030336,2]
[391300268,1760478691792,-1870.2273169,0.00030336,2]
[391300269,1760478691801,-188.39849178,0.00030342,10]
[391300270,1760478691810,-9333.81681072,0.00030344,2]
[391300271,1760478691821,-27219.26696468,0.00030344,2]
[391300272,1760478691831,-7121.61062064,0.0003035,2]
[391300273,1760478691840,-939.62295741,0.0003035,2]
[391300274,1760478691851,-6583.75359657,0.0003035,2]
[391300275,1760478691860,-163.5,0.0003035,4]
[391300276,1760478691869,-161.14,0.0003035,4]
[391300277,1760478691878,-4600.0,0.00030354,2]
[391300278,1760478691888,-800.0,0.00030371,2]
[391300279,1760478691897,-500.0,0.00030373,5]
[391300280,1760478691906,-400.0,0.0003039,120]
[391300281,1760478691915,-200.0,0.00030395,120]
[391300282,1760478691925,-300.0,0.000304,2]
[391300283,1760478691934,-300.0,0.000304,2]
[391300284,1760478691943,-300.0,0.000304,2]
[391300285,1760478691953,-300.0,0.000304,2]
[391300286,1760478691962,-300.0,0.000304,2]
[391300287,1760478691972,-2473.0,0.000304,60]
[391300288,1760478691981,-193.920489,0.000304,2]
[391300289,1760478691991,-761.0,0.000304,2]
[391300290,1760478692000,-36553.0837754,0.00030433,2]
[391300291,1760478692009,-4362.37368812,0.00030437,60]
[391300292,1760478692028,-309.25713735,0.00030437,60]
[391300293,1760478692039,-5328.36917453,0.00030437,60]
[391300294,1760478692048,-2891.63082528,0.00030437,60]
[391300295,1760478767222,1622.0,0.0003045,30]
[391300310,1760478982295,161418.9054,0.00030447,30]
[391300313,1760479125025,500.0,0.00030447,60]
[391300314,1760479125299,500.0,0.00030447,60]
[391300315,1760479125552,500.0,0.00030447,60]
[391300316,1760479125798,500.0,0.00030447,60]
[391300317,1760479126030,528.87535178,0.00030447,60]
[391300318,1760479130949,416.673534,0.00013699,2]
[391300335,1760479369037,2000.0,0.00030464,30]
[391300428,1760479620198,327.53727812,0.00030484,60]
[391300445,1760479832290,-200.0,0.00019514,2]
[391300446,1760479832299,-150.0,0.00019514,2]
[391300447,1760479832308,-172.5,0.00020114,2]
[391300448,1760479832316,-355.01855693,0.00020187,2]
[391300449,1760479832326,-61.65497707,0.00020187,2]
[391300450,1760479832334,-150.0,0.00020332,2]
[391300451,1760479832342,-195.0,0.00020714,2]
[391300452,1760479832350,-0.47002293,0.00021314,2]
[391300453,1760479832360,-217.02997707,0.00021314,2]
[391300454,1760479832368,-1000.0,0.00021776,2]
[391300456,1760479832377,-300.0,0.00021913,2]
[391300458,1760479832387,-414.0,0.00021913,2]
[391300460,1760479832396,-50000.0,0.00021914,2]
[391300462,1760479832405,-240.0,0.00021914,2]
[391300464,1760479832414,-500.0,0.00021973,2]
[391300466,1760479832423,-503.6411007,0.00021973,2]
[391300468,1760479832433,-500.0,0.00021973,2]
[391300470,1760479832442,-500.0,0.00021973,2]
[391300473,1760479832451,-500.0,0.00021973,2]
[391300476,1760479832460,-295.83,0.00022169,2]
[391300478,1760479832469,-262.5,0.00022514,2]
[391300480,1760479832478,-1000.0,0.00022521,2]
[391300482,1760479832487,-1000.0,0.00022521,2]
[391300484,1760479832496,-898.13363596,0.00022521,2]
[391300486,1760479832505,-1413.72198428,0.000226,2]
[391300488,1760479832514,-729.0,0.00022772,2]
[391300490,1760479832523,-500.0,0.00022773,2]
[391300492,1760479832532,-508.14553801,0.00022773,2]
[391300494,1760479832542,-500.0,0.00022773,2]
[391300496,1760479832551,-511.15840958,0.00022773,2]
[391300498,1760479832560,-500.0,0.00022773,2]
[391300500,1760479832569,-171.15299281,0.00022773,2]
[391300502,1760479832578,-500.0,0.00022773,2]
[391300504,1760479832587,-500.0,0.00022773,2]
[391300506,1760479832597,-500.0,0.00022773,2]
[391300508,1760479832606,-500.0,0.00022773,2]
[391300510,1760479832615,-572.89338888,0.00022773,2]
[391300512,1760479832625,-518.61365046,0.00022773,2]
[391300514,1760479832635,-175.42150188,0.00022773,2]
[391300516,1760479832644,-500.13998967,0.00022773,2]
[391300518,1760479832654,-500.0,0.00022773,2]
[391300520,1760479832662,-500.0,0.00022773,2]
[391300522,1760479832672,-500.0,0.00022773,2]
[391300524,1760479832681,-500.16391042,0.00022773,2]
[391300526,1760479832690,-500.0,0.00022773,2]
[391300528,1760479832699,-500.0,0.00022773,2]
[391300530,1760479832708,-500.0,0.00022773,2]
[391300532,1760479832717,-500.0,0.00022773,2]
[391300534,1760479832727,-500.0,0.00022773,2]
[391300536,1760479832739,-629.05019492,0.00022773,2]
[391300537,1760479832748,-500.0,0.00022773,2]
[391300540,1760479832758,-503.61283294,0.00022773,2]
[391300542,1760479832767,-500.0,0.00022773,2]
[391300543,1760479832776,-500.0,0.00022773,2]
[391300545,1760479832785,-500.0,0.00022773,2]
[391300547,1760479832794,-500.0,0.00022773,2]
[391300549,1760479832804,-450.27572846,0.00022773,2]
[391300551,1760479832813,-500.0,0.00022773,2]
[391300553,1760479832822,-500.0,0.00022773,2]
[391300555,1760479832832,-500.0,0.00022773,2]
[391300557,1760479832841,-531.42136432,0.00022773,2]
[391300559,1760479832850,-500.0,0.00022773,2]
[391300561,1760479832860,-500.0,0.00022773,2]
[391300563,1760479832869,-500.0,0.00022773,2]
[391300565,1760479832878,-500.0,0.00022773,2]
[391300567,1760479832887,-500.0,0.00022773,2]
[391300569,1760479832896,-527.75143901,0.00022773,2]
[391300571,1760479832906,-500.0,0.00022773,2]
[391300573,1760479832915,-500.0,0.00022773,2]
[391300575,1760479832924,-164.13989261,0.00022773,2]
[391300577,1760479832933,-500.0,0.00022773,2]
[391300579,1760479832943,-500.0,0.00022773,2]
[391300581,1760479832951,-500.0,0.00022773,2]
[391300583,1760479832961,-500.0,0.00022773,2]
[391300585,1760479832970,-500.0,0.00022773,2]
[391300587,1760479832980,-623.49,0.0002278,10]
[391300589,1760479832990,-500.0,0.0002279,2]
[391300591,1760479832999,-500.0,0.0002279,2]
[391300593,1760479833008,-500.0,0.0002279,2]
[391300595,1760479833017,-500.0,0.0002279,2]
[391300597,1760479833027,-309.01864507,0.0002279,2]
[391300599,1760479833036,-500.0,0.0002279,2]
[391300600,1760479833050,-500.0,0.0002279,2]
[391300602,1760479833059,-500.0,0.0002279,2]
[391300604,1760479833068,-500.0,0.0002279,2]
[391300606,1760479833078,-500.0,0.0002279,2]
[391300608,1760479833089,-500.0,0.0002279,2]
[391300610,1760479833098,-500.0,0.0002279,2]
[391300612,1760479833107,-500.0,0.0002279,2]
[391300614,1760479833117,-547.72822301,0.0002279,2]
[391300616,1760479833128,-500.0,0.0002279,2]
[391300618,1760479833137,-500.0,0.0002279,2]
[391300620,1760479833146,-500.0,0.0002279,2]
[391300622,1760479833155,-500.0,0.0002279,2]
[391300624,1760479833164,-580.10994586,0.0002279,2]
[391300626,1760479833173,-500.0,0.0002279,2]
[391300628,1760479833182,-500.0,0.0002279,2]
[391300630,1760479833191,-500.0,0.0002279,2]
[391300632,1760479833201,-500.0,0.0002279,2]
[391300634,1760479833210,-500.0,0.0002279,2]
[391300636,1760479833219,-373.35743065,0.0002279,2]
[391300638,1760479833228,-500.0,0.0002279,2]
[391300640,1760479833237,-500.0,0.0002279,2]
[391300642,1760479833245,-500.0,0.0002279,2]
[391300644,1760479833254,-500.0,0.0002279,2]
[391300646,1760479833264,-500.0,0.0002279,2]
[391300648,1760479833274,-500.0,0.0002279,2]
[391300650,1760479833283,-500.0,0.0002279,2]
[391300651,1760479833292,-500.0,0.0002279,2]
[391300653,1760479833301,-500.0,0.0002279,2]
[391300655,1760479833311,-500.0,0.0002279,2]
[391300656,1760479833320,-500.0,0.0002279,2]
[391300658,1760479833329,-500.0,0.0002279,2]
[391300660,1760479833339,-500.0,0.0002279,2]
[391300662,1760479833348,-500.0,0.0002279,2]
[391300663,1760479833358,-500.0,0.0002279,2]
[391300665,1760479833367,-500.0,0.0002279,2]
[391300667,1760479833377,-500.0,0.0002279,2]
[391300668,1760479833386,-500.0,0.0002279,2]
[391300670,1760479833396,-500.0,0.0002279,2]
[391300673,1760479833406,-500.0,0.0002279,2]
[391300675,1760479833416,-500.0,0.0002279,2]
[391300677,1760479833426,-500.0,0.0002279,2]
[391300679,1760479833435,-500.0,0.0002279,2]
[391300681,1760479833446,-500.0,0.0002279,2]
[391300683,1760479833455,-500.0,0.0002279,2]
[391300685,1760479833465,-500.0,0.0002279,2]
[391300687,1760479833475,-289.88767133,0.0002279,2]
[391300689,1760479833484,-500.0,0.0002279,2]
[391300690,1760479833494,-500.0,0.0002279,2]
[391300691,1760479833504,-500.0,0.0002279,2]
[391300692,1760479833513,-500.0,0.0002279,2]
[391300693,1760479833523,-500.0,0.0002279,2]
[391300694,1760479833533,-500.0,0.0002279,2]
[391300695,1760479833543,-500.0,0.0002279,2]
[391300696,1760479833553,-500.0,0.0002279,2]
[391300697,1760479833563,-500.0,0.0002279,2]
[391300698,1760479833572,-500.0,0.0002279,2]
[391300699,1760479833582,-500.0,0.0002279,2]
[391300700,1760479833591,-500.0,0.0002279,2]
[391300701,1760479833600,-500.0,0.0002279,2]
[391300702,1760479833610,-500.0,0.0002279,2]
[391300703,1760479833619,-500.0,0.0002279,2]
[391300704,1760479833629,-500.0,0.00022793,2]
[391300705,1760479833639,-198.0,0.00022793,2]
[391300706,1760479833649,-151.0,0.00022793,2]
[391300707,1760479833659,-523.0,0.00022793,2]
[391300708,1760479833668,-151.36530386,0.00022793,2]
[391300709,1760479833677,-151.0,0.00022793,2]
[391300710,1760479833687,-151.27512248,0.00022793,2]
[391300711,1760479833696,-152.15912811,0.00022793,2]
[391300712,1760479833707,-198.0,0.00022793,2]
[391300713,1760479833716,-151.0,0.00022793,2]
[391300714,1760479833726,-151.0,0.00022793,2]
[391300715,1760479833735,-300.0,0.00022794,20]
[391300716,1760479833745,-300.0,0.00022794,20]
[391300717,1760479833754,-300.0,0.00022794,20]
[391300718,1760479833764,-300.0,0.00022794,20]
[391300719,1760479833774,-300.0,0.00022794,20]
[391300720,1760479833783,-300.0,0.00022794,20]
[391300721,1760479833793,-300.0,0.00022794,20]
[391300722,1760479833803,-300.0,0.00022794,20]
[391300723,1760479833813,-300.0,0.00022794,20]
[391300724,1760479833823,-300.0,0.00022794,20]
[391300725,1760479833833,-300.0,0.00022794,20]
[391300726,1760479833842,-300.0,0.00022794,20]
[391300727,1760479833851,-300.0,0.00022794,20]
[391300728,1760479833861,-300.0,0.00022794,20]
[391300729,1760479833871,-300.0,0.00022794,20]
[391300730,1760479833880,-600.0,0.00022794,20]
[391300731,1760479833890,-151.0,0.00022848,2]
[391300732,1760479833899,-523.0,0.00022848,2]
[391300733,1760479833909,-151.0,0.00022903,2]
[391300734,1760479833918,-523.0,0.00022903,2]
[391300735,1760479833928,-151.0,0.00022957,2]
[391300736,1760479833937,-523.0,0.00022957,2]
[391300737,1760479833946,-151.0,0.00023012,2]
[391300738,1760479833955,-523.0,0.00023012,2]
[391300739,1760479833965,-500.0,0.00023067,2]
[391300740,1760479833974,-245.0,0.00023067,2]
[391300741,1760479833984,-523.0,0.00023067,2]
[391300742,1760479833993,-1500.0,0.00023068,2]
[391300743,1760479834003,-1000.0,0.00023068,2]
[391300744,1760479834012,-285.0,0.00023114,2]
[391300745,1760479834021,-523.0,0.00023122,2]
[391300746,1760479834031,-523.0,0.00023177,2]
[391300747,1760479834041,-523.0,0.00023231,2]
[391300748,1760479834055,-523.0,0.00023286,2]
[391300749,1760479834064,-490.00740792,0.00023321,2]
[391300750,1760479834078,-255.49749186,0.00023321,2]
[391300751,1760479834090,-23.01195523,0.00023321,2]
[391300752,1760479834100,-500.88756936,0.00023321,2]
[391300753,1760479834109,-500.0,0.00023321,2]
[391300754,1760479834118,-500.41742822,0.00023321,2]
[391300755,1760479834130,-500.47437712,0.00023321,2]
[391300756,1760479834139,-500.0,0.00023321,2]
[391300757,1760479834148,-1000.0,0.00023321,2]
[391300758,1760479834157,-1000.0,0.00023321,2]
[391300759,1760479834167,-1000.0,0.00023321,2]
[391300760,1760479834176,-500.0,0.00023321,2]
[391300761,1760479834185,-1000.0,0.00023321,2]
[391300762,1760479834195,-1000.0,0.00023321,2]
[391300763,1760479834204,-1000.0,0.00023321,2]
[391300764,1760479834213,-500.00810227,0.00023321,2]
[391300765,1760479834222,-500.0,0.00023321,2]
[391300766,1760479834232,-513.1882625,0.00023321,2]
[391300767,1760479834242,-500.0,0.00023321,2]
[391300768,1760479834251,-1000.0,0.00023321,2]
[391300769,1760479834260,-1000.0,0.00023321,2]
[391300770,1760479834269,-214.56510012,0.00023321,2]
[391300771,1760479834279,-1000.0,0.00023321,2]
[391300772,1760479834288,-1000.0,0.00023321,2]
[391300773,1760479834298,-1000.0,0.00023321,2]
[391300774,1760479834308,-329.81979326,0.00023321,2]
[391300775,1760479834317,-1000.0,0.00023321,2]
[391300776,1760479834326,-500.38039849,0.00023321,2]
[391300777,1760479834336,-500.84748506,0.00023321,2]
[391300778,1760479834345,-1000.68375299,0.00023321,2]
[391300779,1760479834354,-1000.0,0.00023321,2]
[391300780,1760479834364,-500.0,0.00023341,2]
[391300781,1760479834374,-523.0,0.00023341,2]
[391300782,1760479834384,-523.0,0.00023396,2]
[391300783,1760479834393,-523.0,0.00023451,2]
[391300784,1760479834403,-523.0,0.00023505,2]
[391300785,1760479834413,-523.0,0.0002356,2]
[391300786,1760479834422,-500.0,0.0002357,2]
[391300787,1760479834432,-523.0,0.00023615,2]
[391300788,1760479834441,-523.0,0.0002367,2]
[391300789,1760479834451,-307.5,0.00023714,2]
[391300790,1760479834460,-523.0,0.00023725,2]
[391300791,1760479834471,-523.0,0.00023779,2]
[391300792,1760479834480,-666.66666667,0.00023791,2]
[391300793,1760479834488,-666.66666667,0.00023791,2]
[391300794,1760479834497,-420.0,0.00023814,2]
[391300795,1760479834507,-523.0,0.00023834,2]
[391300796,1760479834516,-177.87452253,0.00023868,2]
[391300797,1760479834525,-500.0,0.00023868,2]
[391300798,1760479834534,-1500.0,0.00023868,2]
[391300799,1760479834544,-500.0,0.00023868,2]
[391300800,1760479834553,-500.0,0.00023868,2]
[391300801,1760479834562,-500.0,0.00023868,2]
[391300802,1760479834571,-1419.69373712,0.00023868,2]
[391300803,1760479834581,-1500.0,0.00023868,2]
[391300804,1760479834600,-500.0,0.00023868,2]
[391300805,1760479834609,-1000.0,0.00023868,2]
[391300806,1760479834619,-523.0,0.00023889,2]
[391300807,1760479834629,-666.66666667,0.00023934,4]
[391300808,1760479834639,-666.66666667,0.00023934,4]
[391300809,1760479834648,-666.66666667,0.00023934,4]
[391300810,1760479834658,-666.66666667,0.00023934,4]
[391300811,1760479834667,-523.0,0.00023944,2]
[391300812,1760479834677,-500.0,0.00023973,2]
[391300813,1760479834687,-1160.43,0.0002398,3]
[391300814,1760479834697,-580.21,0.0002398,3]
[391300815,1760479834707,-290.11,0.0002398,3]
[391300816,1760479834718,-870.35,0.0002398,3]
[391300817,1760479834728,-632.46,0.0002398,3]
[391300818,1760479834738,-496.94,0.0002398,3]
[391300819,1760479834747,-248.47,0.0002398,3]
[391300820,1760479834757,-745.46,0.0002398,3]
[391300821,1760479834767,-100000.0,0.0002399,2]
[391300822,1760479834777,-151.0,0.00023998,2]
[391300823,1760479834788,-151.0,0.00023998,2]
[391300824,1760479834798,-151.0,0.00023998,2]
[391300825,1760479834808,-523.0,0.00023998,2]
[391300826,1760479834818,-8735.74,0.00024,2]
[391300827,1760479834827,-25000.0,0.00024,2]
[391300828,1760479834837,-24655.27,0.00024,2]
[391300829,1760479834847,-443.75,0.00024017,2]
[391300830,1760479834856,-151.0,0.00024053,2]
[391300831,1760479834867,-540.73608669,0.00024053,2]
[391300832,1760479834876,-22694.624419,0.00024062,2]
[391300833,1760479834886,-666.66666667,0.00024078,6]
[391300834,1760479834895,-666.66666667,0.00024078,6]
[391300835,1760479834905,-160.0,0.0002409,2]
[391300836,1760479834915,-500.0,0.00024104,5]
[391300837,1760479834925,-245.0,0.00024108,2]
[391300838,1760479834934,-151.0,0.00024149,2]
[391300839,1760479834944,-151.0,0.00024149,2]
[391300840,1760479834953,-151.0,0.00024149,2]
[391300841,1760479834962,-151.0,0.00024149,2]
[391300842,1760479834972,-151.0,0.00024149,2]
[391300843,1760479834982,-151.0,0.00024149,2]
[391300844,1760479834991,-151.0,0.00024149,2]
[391300845,1760479835001,-260.68741844,0.00024149,2]
[391300846,1760479835011,-151.0,0.00024149,2]
[391300847,1760479835020,-151.0,0.00024149,2]
[391300848,1760479835031,-2304.22816849,0.0002415,2]
[391300885,1760479838354,-415.5805414,0.00023067,2]
[391300887,1760479838364,-272.59276656,0.00023067,2]
[391300889,1760479838374,-22602.06183151,0.0002415,2]
[391300891,1760479838384,-500.0,0.00024173,2]
[391300893,1760479838394,-500.0,0.00024173,2]
[391300895,1760479838404,-151.0,0.00024204,2]
[391300897,1760479838413,-151.0,0.00024204,2]
[391300899,1760479838423,-242.46671906,0.00024204,2]
[391300901,1760479838433,-151.0,0.00024204,2]
[391300903,1760479838443,-151.0,0.00024204,2]
[391300905,1760479838452,-151.0,0.00024204,2]
[391300907,1760479838462,-666.66666667,0.00024221,8]
[391300909,1760479838473,-666.66666667,0.00024221,8]
[391300911,1760479838483,-666.66666667,0.00024221,8]
[391300913,1760479838493,-151.0,0.00024259,2]
[391300917,1760479838503,-151.0,0.00024259,2]
[391300921,1760479838513,-151.0,0.00024259,2]
[391300923,1760479838522,-198.0,0.00024259,2]
[391300925,1760479838531,-151.0,0.00024313,2]
[391300927,1760479838542,-151.0,0.00024313,2]
[391300930,1760479838552,-289.3545318,0.00024313,2]
[391300933,1760479838561,-330.0,0.00024314,2]
[391300936,1760479838572,-666.66666667,0.00024364,10]
[391300939,1760479838581,-666.66666667,0.00024364,10]
[391300942,1760479838591,-151.0,0.00024368,2]
[391300945,1760479838601,-151.0,0.00024368,2]
[391300948,1760479838613,-1304.7610492,0.00024416,2]